[Event "4th Baskent University Open 2019"]
[Site "Ankara"]
[Date "2019.06.22"]
[Round "9"]
[White "Babayev, Talib"]
[Black "Rzayev, Askar Aliakbar"]
[Result "1-0"]
[ECO "A13"]
[WhiteElo "2290"]
[BlackElo "2089"]
[Annotator "NA"]
[PlyCount "71"]
[EventDate "2019.06.18"]
[EventType "swiss"]
[EventCountry "TUR"]
[SourceTitle "playchess.com"]
[Source "ChessBase"]
[SourceQuality "1"]
[TimeControl "5400+30"]

1. Nf3 {[%emt 0:00:30]} d5 {[%emt 0:00:30]} 2. c4 {[%emt 0:00:00]} e6 {[%emt 0:01:30]} 3. g3 {[%emt 0:00:00]} Nf6 {[%emt 0:00:00]} 4. Bg2 {[%emt 0:00:30]} Be7 {[%emt 0:00:00]} 5. b3 {[%emt 0:00:00]} d4 {[%emt 0:00:30]} 6. Bb2 {[%emt 0:00:00]} c5 {[%emt 0:00:00]} 7. b4 {[%emt 0:00:30]} O-O {[%emt 0:01:00]} 8. O-O {[%emt 0:00:30]} a5 {[%emt 0:12:30]} 9. bxc5 {[%emt 0:08:30]} Bxc5 {[%emt 0:00:30]} 10. Ne5 {[%emt 0:01:30]} a4 {[%emt 0:02:30]} 11. Nd3 {[%emt 0:03:30]} a3 {[%emt 0:09:30]} 12. Bc1 {[%emt 0:00:30]} Be7 {[%emt 0:00:30]} 13. Qb3 {[%emt 0:03:30]} Qa5 {[%emt 0:01:30]} 14. c5 {[%emt 0:00:30]} e5 {[%emt 0:11:30]} 15. Nxe5 {[%emt 0:16:30]} Qxc5 {[%emt 0:05:30]} 16. Nc4 {[%emt 0:01:30]} Be6 {[%emt 0:04:30]} 17. d3 {[%emt 0:07:30]} Bxc4 {[%emt 0:05:30]} 18. dxc4 {[%emt 0:00:00]} Nc6 {[%emt 0:00:30]} 19. Qxb7 {[%emt 0:03:00]} Ne5 {[%emt 0:08:30]} 20. Qb5 {[%emt 0:04:30]} Ra5 {[%emt 0:02:30]} 21. Qxc5 {[%emt 0:00:30]} Bxc5 {[%emt 0:00:30]} 22. Nd2 {[%emt 0:00:30]} Ra4 {[%emt 0:03:30]} 23. Nb3 {[%emt 0:02:30]} Rc8 {[%emt 0:01:30]} 24. Bf4 {[%emt 0:00:30]} Ng6 {[%emt 0:09:37]} 25. Bb7 {[%emt 0:02:30]} Nxf4 {[%emt 0:00:05]} 26. Bxc8 {[%emt 0:00:30]} Nxe2+ {[%emt 0:00:39]} 27. Kg2 {[%emt 0:00:00]} Bf8 {[%emt 0:02:43]} 28. c5 {[%emt 0:02:00]} Nc3 {[%emt 0:01:02]} 29. Rfc1 {[%emt 0:00:30]} Nfd5 {[%emt 0:00:44]} 30. Bb7 {[%emt 0:02:30]} Nb4 {[%emt 0:01:27]} 31. c6 {[%emt 0:02:30]} Bd6 {[%emt 0:02:21]} 32. Re1 {[%emt 0:00:30]} Kf8 {[%emt 0:00:40]} 33. Nc5 {[%emt 0:00:30]} g6 {[%emt 0:02:15]} 34. Nxa4 {[%emt 0:01:30]} Nxa4 {[%emt 0:01:34]} 35. Re4 {[%emt 0:00:30]} Nc2 {[%emt 0:05:57]} 36. Rc1 {[%emt 0:00:00]} 1-0

[Event "4th Baskent University Open 2019"]
[Site "Ankara"]
[Date "2019.06.22"]
[Round "9"]
[White "Kazimova, Narmin"]
[Black "Bagaturov, Giorgi"]
[Result "0-1"]
[ECO "E62"]
[WhiteElo "2271"]
[BlackElo "2422"]
[Annotator "NA"]
[PlyCount "78"]
[EventDate "2019.06.18"]
[EventType "swiss"]
[EventCountry "TUR"]
[SourceTitle "playchess.com"]
[Source "ChessBase"]
[SourceQuality "1"]
[TimeControl "5400+30"]

1. c4 g6 2. d4 Nf6 3. Nf3 Bg7 4. g3 O-O 5. Bg2 d6 6. O-O Nc6 7. Nc3 e5 8. d5 Nb8 9. e4 a5 10. Ne1 Na6 11. Nd3 Bd7 12. a3 Nc5 13. Nxc5 dxc5 14. Rb1 Qe7 15. b4 axb4 16. axb4 cxb4 17. Nb5 c5 18. d6 Qd8 19. Nc7 Rc8 20. f4 Ne8 21. Nd5 Nxd6 22. fxe5 Bxe5 23. Bb2 Nxc4 24. Bxe5 Nxe5 25. Nf6+ Kg7 26. Qc1 Bb5 27. Qg5 Bxf1 28. Rxf1 Rc6 29. Nh5+ Kg8 30. Qxe5 gxh5 31. Qxh5 b3 32. e5 Rg6 33. Bxb7 c4 34. Qf3 Qd3 35. Qf4 c3 36. Be4 Qd2 37. Qf5 Qd4+ 38. Kh1 Qc5 39. Qf4 c2 0-1

[Event "4th Baskent University Open 2019"]
[Site "Ankara"]
[Date "2019.06.22"]
[Round "9"]
[White "Darban, Morteza"]
[Black "Gulden, Egemen"]
[Result "1-0"]
[ECO "A25"]
[WhiteElo "2264"]
[BlackElo "2120"]
[Annotator "ChessBase"]
[PlyCount "75"]
[EventDate "2019.06.18"]
[EventType "swiss"]
[EventCountry "TUR"]
[SourceTitle "playchess.com"]
[Source "ChessBase"]
[SourceQuality "1"]
[TimeControl "5400+30"]

1. c4 e5 2. Nc3 Nc6 3. g3 g6 4. Bg2 Bg7 5. e3 d6 6. Nge2 Be6 7. Nd5 Nh6 8. O-O O-O 9. d3 Qd7 10. Nec3 Nd8 11. Ne4 f6 12. b3 c6 13. Ndc3 Ndf7 14. Bb2 f5 15. Nd2 g5 16. Rb1 Nh8 17. d4 exd4 18. exd4 Bxd4 19. Nde4 Bxc3 20. Nxc3 Ng6 21. Qh5 Nf7 22. Nd5 Bxd5 23. cxd5 Rfe8 24. f4 c5 25. fxg5 Nfe5 26. Bh3 Rf8 27. Qe2 Rae8 28. Qc2 Qf7 29. Rbd1 Qe7 30. Rxf5 Rxf5 31. Qxf5 Rf8 32. Qe6+ Kg7 33. Qxe7+ Nxe7 34. Bxe5+ dxe5 35. Bg2 Nf5 36. d6 Ne3 37. Rd3 Nxg2 38. Kxg2 1-0

[Event "4th Baskent University Open 2019"]
[Site "Ankara"]
[Date "2019.06.22"]
[Round "9"]
[White "Aydincelebi, Kagan"]
[Black "Javadov, Ramil"]
[Result "1-0"]
[ECO "B06"]
[WhiteElo "2258"]
[BlackElo "2063"]
[Annotator "NA"]
[PlyCount "67"]
[EventDate "2019.06.18"]
[EventType "swiss"]
[EventCountry "TUR"]
[SourceTitle "playchess.com"]
[Source "ChessBase"]
[SourceQuality "1"]
[TimeControl "5400+30"]

1. e4 {[%emt 0:00:30]} c6 {[%emt 0:00:30]} 2. d4 {[%emt 0:00:00]} g6 {[%emt 0:00:30]} 3. Nc3 {[%emt 0:00:00]} Bg7 {[%emt 0:00:30]} 4. Nf3 {[%emt 0:02:30]} d6 {[%emt 0:03:30]} 5. h3 {[%emt 0:01:30]} Nh6 {[%emt 0:02:30]} 6. Bf4 {[%emt 0:02:30]} f6 {[%emt 0:01:30]} 7. Qd2 {[%emt 0:00:30]} Nf7 {[%emt 0:00:30]} 8. d5 {[%emt 0:00:30]} c5 {[%emt 0:05:30]} 9. Be2 {[%emt 0:05:30]} O-O {[%emt 0:01:30]} 10. O-O-O {[%emt 0:02:30]} Na6 {[%emt 0:01:30]} 11. g4 {[%emt 0:00:30]} Nc7 {[%emt 0:03:30]} 12. Rdg1 {[%emt 0:03:30]} e5 {[%emt 0:09:30]} 13. dxe6 {[%emt 0:00:30]} Nxe6 {[%emt 0:00:30]} 14. Be3 {[%emt 0:00:30]} Neg5 {[%emt 0:19:30]} 15. h4 {[%emt 0:08:30]} Nxf3 {[%emt 0:01:30]} 16. Bxf3 {[%emt 0:00:30]} Rb8 {[%emt 0:10:30]} 17. Be2 {[%emt 0:01:30]} b5 {[%emt 0:00:00]} 18. Nd5 {[%emt 0:04:30]} Re8 {[%emt 0:01:00]} 19. h5 {[%emt 0:10:30]} Rxe4 {[%emt 0:05:30]} 20. hxg6 {[%emt 0:00:30]} hxg6 {[%emt 0:00:30]} 21. Bd3 {[%emt 0:01:30]} Ra4 {[%emt 0:04:30]} 22. Nc3 {[%emt 0:00:30]} Be6 {[%emt 0:12:53]} 23. Nxa4 {[%emt 0:00:30]} bxa4 {[%emt 0:00:00]} 24. Bxg6 {[%emt 0:09:30]} Ng5 {[%emt 0:02:05]} 25. Bf5 {[%emt 0:03:30]} Bxa2 {[%emt 0:04:00]} 26. Qc3 {[%emt 0:02:30]} Bd5 {[%emt 0:02:13]} 27. f3 {[%emt 0:05:30]} Qe8 {[%emt 0:03:09]} 28. Re1 {[%emt 0:06:30]} Nxf3 {[%emt 0:01:51]} 29. Rd1 {[%emt 0:04:30]} Nd4 {[%emt 0:01:33]} 30. Rhe1 {[%emt 0:02:30]} Qf7 {[%emt 0:00:31]} 31. Bxd4 {[%emt 0:01:30]} cxd4 {[%emt 0:00:07]} 32. Qxd4 {[%emt 0:00:30]} Bh6+ {[%emt 0:02:57]} 33. Kb1 {[%emt 0:00:30]} Rb5 {[%emt 0:00:08]} 34. Qxa4 {[%emt 0:01:03]} 1-0

[Event "4th Baskent University Open 2019"]
[Site "Ankara"]
[Date "2019.06.22"]
[Round "9"]
[White "Yilmaz, Goktan"]
[Black "Gulbeyaz, Emir"]
[Result "1-0"]
[ECO "B06"]
[WhiteElo "2155"]
[BlackElo "2157"]
[Annotator "NA"]
[PlyCount "85"]
[EventDate "2019.06.18"]
[EventType "swiss"]
[EventCountry "TUR"]
[SourceTitle "playchess.com"]
[Source "ChessBase"]
[SourceQuality "1"]
[TimeControl "5400+30"]

1. e4 {[%emt 0:00:30]} g6 {[%emt 0:08:30]} 2. d4 {[%emt 0:00:30]} Bg7 {[%emt 0:00:30]} 3. Nc3 {[%emt 0:00:00]} d6 {[%emt 0:01:30]} 4. Be3 {[%emt 0:00:00]} a6 {[%emt 0:00:30]} 5. f4 {[%emt 0:00:00]} b5 {[%emt 0:01:30]} 6. Nf3 {[%emt 0:00:00]} Bb7 {[%emt 0:00:00]} 7. Bd3 {[%emt 0:00:00]} Nd7 {[%emt 0:01:00]} 8. e5 {[%emt 0:00:00]} c5 {[%emt 0:04:30]} 9. Be4 {[%emt 0:00:30]} Bxe4 {[%emt 0:00:30]} 10. Nxe4 {[%emt 0:00:00]} cxd4 {[%emt 0:02:30]} 11. Bxd4 {[%emt 0:00:00]} dxe5 {[%emt 0:06:30]} 12. fxe5 {[%emt 0:00:30]} Nf8 {[%emt 0:05:30]} 13. Neg5 {[%emt 0:24:30]} Nh6 {[%emt 0:05:30]} 14. Qe2 {[%emt 0:07:30]} Ne6 {[%emt 0:10:30]} 15. Nxe6 {[%emt 0:02:30]} fxe6 {[%emt 0:00:00]} 16. O-O-O {[%emt 0:02:30]} O-O {[%emt 0:12:00]} 17. Kb1 {[%emt 0:01:30]} Qc7 {[%emt 0:02:30]} 18. Qe4 {[%emt 0:10:30]} Rac8 {[%emt 0:01:30]} 19. Rhe1 {[%emt 0:07:30]} Rfd8 {[%emt 0:02:30]} 20. Ng5 {[%emt 0:06:30]} Qc6 {[%emt 0:01:30]} 21. Qxc6 {[%emt 0:02:30]} Rxc6 {[%emt 0:00:30]} 22. Bc3 {[%emt 0:00:30]} Rdc8 {[%emt 0:01:30]} 23. Rd7 {[%emt 0:00:30]} Nf7 {[%emt 0:01:30]} 24. Nf3 {[%emt 0:01:30]} R6c7 {[%emt 0:03:30]} 25. Rxc7 {[%emt 0:03:30]} Rxc7 {[%emt 0:00:00]} 26. a4 {[%emt 0:01:30]} Rc5 {[%emt 0:02:00]} 27. axb5 {[%emt 0:01:30]} axb5 {[%emt 0:00:30]} 28. Re2 {[%emt 0:03:30]} Rd5 {[%emt 0:00:30]} 29. Ka2 {[%emt 0:01:30]} Nd8 {[%emt 0:00:30]} 30. b4 {[%emt 0:01:30]} h6 {[%emt 0:06:39]} 31. Kb3 {[%emt 0:00:30]} g5 {[%emt 0:01:28]} 32. h3 {[%emt 0:00:30]} Kf7 {[%emt 0:00:59]} 33. Bb2 {[%emt 0:00:30]} Kg6 {[%emt 0:00:00]} 34. c4 {[%emt 0:01:30]} bxc4+ {[%emt 0:02:17]} 35. Kxc4 {[%emt 0:00:00]} Kf5 {[%emt 0:00:30]} 36. b5 {[%emt 0:02:42]} h5 {[%emt 0:06:27]} 37. g3 {[%emt 0:00:08]} Rd1 {[%emt 0:01:32]} 38. Nd4+ {[%emt 0:00:27]} Kg6 {[%emt 0:00:45]} 39. b6 {[%emt 0:00:24]} Kf7 {[%emt 0:01:12]} 40. Nb3 {[%emt 0:02:14]} Rd5 {[%emt 0:00:39]} 41. Nc5 {[%emt 0:01:39]} Ke8 {[%emt 0:02:57]} 42. Nxe6 {[%emt 0:00:47]} Nxe6 {[%emt 0:00:17]} 43. Kxd5 {[%emt 0:00:30]} 1-0

[Event "4th Baskent University Open 2019"]
[Site "Ankara"]
[Date "2019.06.22"]
[Round "9"]
[White "Ozguner, Hakki Ata"]
[Black "Makaraci, Tunahan"]
[Result "1/2-1/2"]
[ECO "D02"]
[WhiteElo "2153"]
[BlackElo "1963"]
[Annotator "NA"]
[PlyCount "48"]
[EventDate "2019.06.18"]
[EventType "swiss"]
[EventCountry "TUR"]
[SourceTitle "playchess.com"]
[Source "ChessBase"]
[SourceQuality "1"]
[TimeControl "5400+30"]

1. d4 {[%emt 0:00:30]} Nf6 {[%emt 0:00:30]} 2. Bf4 {[%emt 0:00:00]} d5 {[%emt 0:00:30]} 3. e3 {[%emt 0:00:00]} c5 {[%emt 0:00:30]} 4. c3 {[%emt 0:00:30]} Nc6 {[%emt 0:00:00]} 5. Nd2 {[%emt 0:00:30]} e6 {[%emt 0:00:00]} 6. Ngf3 {[%emt 0:00:30]} Bd6 {[%emt 0:00:00]} 7. Bg3 {[%emt 0:00:30]} O-O {[%emt 0:01:00]} 8. Bd3 {[%emt 0:00:00]} b6 {[%emt 0:00:00]} 9. Qe2 {[%emt 0:00:00]} Bb7 {[%emt 0:11:00]} 10. Rd1 {[%emt 0:00:30]} Re8 {[%emt 0:01:30]} 11. Ne5 {[%emt 0:02:30]} Qc7 {[%emt 0:02:30]} 12. Nxc6 {[%emt 0:18:30]} Bxc6 {[%emt 0:00:30]} 13. dxc5 {[%emt 0:00:00]} bxc5 {[%emt 0:00:00]} 14. e4 {[%emt 0:02:00]} Bf4 {[%emt 0:04:00]} 15. O-O {[%emt 0:09:30]} Bxg3 {[%emt 0:00:30]} 16. hxg3 {[%emt 0:02:30]} Rab8 {[%emt 0:01:30]} 17. e5 {[%emt 0:05:30]} Nd7 {[%emt 0:00:30]} 18. Nf3 {[%emt 0:00:00]} h6 {[%emt 0:01:30]} 19. Rfe1 {[%emt 0:06:00]} Red8 {[%emt 0:11:30]} 20. g4 {[%emt 0:05:30]} Qb7 {[%emt 0:01:30]} 21. Rd2 {[%emt 0:04:30]} Nf8 {[%emt 0:13:30]} 22. Bb1 {[%emt 0:13:30]} Qb5 {[%emt 0:04:30]} 23. Bd3 {[%emt 0:01:30]} Qb7 {[%emt 0:00:30]} 24. Bb1 {[%emt 0:00:00]} Qb5 {[%emt 0:00:00]} 1/2-1/2

[Event "4th Baskent University Open 2019"]
[Site "Ankara"]
[Date "2019.06.22"]
[Round "9"]
[White "Kizilkus, Akin"]
[Black "Nikcevic, Nebojsa"]
[Result "1/2-1/2"]
[ECO "D26"]
[WhiteElo "2131"]
[BlackElo "2420"]
[Annotator "NA"]
[PlyCount "104"]
[EventDate "2019.06.18"]
[EventType "swiss"]
[EventCountry "TUR"]
[SourceTitle "playchess.com"]
[Source "ChessBase"]
[SourceQuality "1"]
[TimeControl "5400+30"]

1. d4 d5 2. c4 dxc4 3. e3 Nf6 4. Bxc4 e6 5. Nf3 a6 6. O-O b5 7. Bd3 Bb7 8. a4 b4 9. Nbd2 c5 10. e4 Nc6 11. e5 Nd7 12. Nc4 cxd4 13. Bg5 Qb8 14. Rc1 h6 15. Bh4 Bc5 16. Qe2 Ra7 17. Nfd2 Ncxe5 18. Bg3 Bd6 19. Nxd6+ Qxd6 20. Nc4 Qd5 21. Be4 d3 22. Qh5 Qxc4 23. Rxc4 Nxc4 24. Bxb7 Rxb7 25. Qf3 Na5 26. Bd6 f5 27. Qxd3 Kf7 28. Qxa6 Rb6 29. Qxa5 Rxd6 30. Qxb4 Rd5 31. h3 Rb8 32. Qa3 Rd4 33. Rc1 Rb7 34. a5 Nb8 35. a6 Ra7 36. Qe3 Rdd7 37. Qb6 Nxa6 38. Ra1 Rdb7 39. Qd4 Rd7 40. Qe3 Ra8 41. Qb6 Nc7 42. Rxa8 Nxa8 43. Qc6 Ra7 44. b4 Nc7 45. b5 Nd5 46. b6 Nxb6 47. Qxb6 Rd7 48. Kf1 h5 49. h4 Rd5 50. Qc7+ Kf6 51. Qc3+ Kf7 52. Qc7+ Kf6 1/2-1/2

[Event "4th Baskent University Open 2019"]
[Site "Ankara"]
[Date "2019.06.22"]
[Round "9"]
[White "Guven, Oguz Kagan"]
[Black "Pacher, Milan"]
[Result "1/2-1/2"]
[ECO "A11"]
[WhiteElo "2095"]
[BlackElo "2434"]
[Annotator "NA"]
[PlyCount "45"]
[EventDate "2019.06.18"]
[EventType "swiss"]
[EventCountry "TUR"]
[SourceTitle "playchess.com"]
[Source "ChessBase"]
[SourceQuality "1"]
[TimeControl "5400+30"]

1. Nf3 {[%emt 0:01:30]} d5 {[%emt 0:00:30]} 2. g3 {[%emt 0:00:30]} g6 {[%emt 0:00:30]} 3. Bg2 {[%emt 0:00:30]} Bg7 {[%emt 0:00:30]} 4. d4 {[%emt 0:00:30]} c6 {[%emt 0:00:00]} 5. O-O {[%emt 0:00:00]} Nf6 {[%emt 0:00:00]} 6. b3 {[%emt 0:00:00]} O-O {[%emt 0:00:00]} 7. c4 {[%emt 0:00:00]} a5 {[%emt 0:00:00]} 8. Nc3 {[%emt 0:00:00]} Ne4 {[%emt 0:00:30]} 9. Bb2 {[%emt 0:01:30]} Nxc3 {[%emt 0:00:30]} 10. Bxc3 {[%emt 0:00:00]} a4 {[%emt 0:00:30]} 11. cxd5 {[%emt 0:05:00]} cxd5 {[%emt 0:00:30]} 12. bxa4 {[%emt 0:00:30]} Nc6 {[%emt 0:00:30]} 13. Ne5 {[%emt 0:00:30]} Nxe5 {[%emt 0:01:30]} 14. dxe5 {[%emt 0:00:30]} Be6 {[%emt 0:01:30]} 15. Rb1 {[%emt 0:02:30]} Qc7 {[%emt 0:00:30]} 16. Qd4 {[%emt 0:05:30]} Rfc8 {[%emt 0:00:00]} 17. Rfc1 {[%emt 0:03:30]} Qc4 {[%emt 0:00:00]} 18. Qxc4 {[%emt 0:04:30]} Rxc4 {[%emt 0:00:30]} 19. Bb4 {[%emt 0:03:30]} Rxa4 {[%emt 0:02:30]} 20. a3 {[%emt 0:02:30]} Bxe5 {[%emt 0:02:30]} 21. Rd1 {[%emt 0:16:30]} Rc7 {[%emt 0:21:30]} 22. Bxd5 {[%emt 0:01:30]} Ra6 {[%emt 0:00:00]} 23. Bxe6 {[%emt 0:05:30]} 1/2-1/2

[Event "4th Baskent University Open 2019"]
[Site "Ankara"]
[Date "2019.06.22"]
[Round "9"]
[White "Sakalli, Mustafa"]
[Black "Guseynov, Alihan"]
[Result "0-1"]
[ECO "A30"]
[WhiteElo "1916"]
[BlackElo "2274"]
[Annotator "NA"]
[PlyCount "110"]
[EventDate "2019.06.18"]
[EventType "swiss"]
[EventCountry "TUR"]
[SourceTitle "playchess.com"]
[Source "ChessBase"]
[SourceQuality "1"]
[TimeControl "5400+30"]

1. c4 Nf6 2. Nc3 e6 3. Nf3 c5 4. g3 b6 5. Bg2 Bb7 6. O-O Be7 7. Re1 O-O 8. e4 d6 9. d4 cxd4 10. Nxd4 Qc8 11. b3 a6 12. Bb2 Nbd7 13. Rc1 Qc7 14. h3 Rac8 15. g4 g6 16. Nde2 Qb8 17. Ng3 Ne8 18. Qd2 Bf6 19. g5 Bg7 20. h4 f6 21. Bh3 Ne5 22. Bxe6+ Kh8 23. Re3 fxg5 24. hxg5 Rc7 25. Nd5 Bxd5 26. exd5 Nf3+ 27. Rxf3 Rxf3 28. Kg2 Rf8 29. Rh1 Qd8 30. f4 Re7 31. Qc1 Bxb2 32. Qxb2+ Ng7 33. Qd4 Ree8 34. a4 a5 35. Rh6 Rxe6 36. dxe6 Qe7 37. Rh1 Qxe6 38. Rf1 Qg4 39. Qxd6 Qxg3+ 40. Kxg3 Nf5+ 41. Kf3 Nxd6 42. Rd1 Nb7 43. Rb1 Nc5 44. b4 Nxa4 45. bxa5 bxa5 46. Ra1 Nb2 47. c5 a4 48. Ke4 Rd8 49. c6 Kg7 50. Ra2 Nd1 51. Ke5 Nc3 52. Rc2 Nb5 53. Rb2 Na3 54. Rb7+ Kf8 55. c7 Nc4+ 0-1

[Event "4th Baskent University Open 2019"]
[Site "Ankara"]
[Date "2019.06.22"]
[Round "9"]
[White "Yildirim, Ibrahim Halil"]
[Black "Elma, Muge"]
[Result "1/2-1/2"]
[ECO "B53"]
[WhiteElo "1787"]
[BlackElo "1618"]
[Annotator "NA"]
[PlyCount "63"]
[EventDate "2019.06.18"]
[EventType "swiss"]
[EventCountry "TUR"]
[SourceTitle "playchess.com"]
[Source "ChessBase"]
[SourceQuality "1"]
[TimeControl "5400+30"]

1. e4 {[%emt 0:00:30]} c5 {[%emt 0:00:30]} 2. Nf3 {[%emt 0:00:30]} d6 {[%emt 0:00:30]} 3. d4 {[%emt 0:00:30]} cxd4 {[%emt 0:00:30]} 4. Qxd4 {[%emt 0:00:00]} Nc6 {[%emt 0:00:00]} 5. Bb5 {[%emt 0:00:00]} Bd7 {[%emt 0:00:00]} 6. Bxc6 {[%emt 0:00:00]} Bxc6 {[%emt 0:00:30]} 7. Nc3 {[%emt 0:00:00]} Nf6 {[%emt 0:00:00]} 8. Bg5 {[%emt 0:00:00]} e6 {[%emt 0:00:00]} 9. O-O-O {[%emt 0:00:00]} Be7 {[%emt 0:00:30]} 10. Rhe1 {[%emt 0:00:00]} Qc7 {[%emt 0:12:30]} 11. Kb1 {[%emt 0:03:00]} a6 {[%emt 0:03:30]} 12. Qd3 {[%emt 0:20:30]} b5 {[%emt 0:05:30]} 13. Nd4 {[%emt 0:15:30]} b4 {[%emt 0:04:30]} 14. Nxc6 {[%emt 0:00:30]} Qxc6 {[%emt 0:01:30]} 15. Bxf6 {[%emt 0:00:30]} gxf6 {[%emt 0:02:30]} 16. Ne2 {[%emt 0:00:30]} Rc8 {[%emt 0:01:30]} 17. Nd4 {[%emt 0:07:30]} Qc4 {[%emt 0:01:30]} 18. f4 {[%emt 0:10:30]} Bd8 {[%emt 0:06:30]} 19. f5 {[%emt 0:04:30]} Qxd3 {[%emt 0:02:30]} 20. Rxd3 {[%emt 0:00:30]} Ke7 {[%emt 0:01:30]} 21. Red1 {[%emt 0:01:30]} Bb6 {[%emt 0:00:30]} 22. Nb3 {[%emt 0:01:30]} Rc6 {[%emt 0:03:30]} 23. c3 {[%emt 0:21:25]} bxc3 {[%emt 0:01:30]} 24. Rxc3 {[%emt 0:00:04]} Rxc3 {[%emt 0:00:30]} 25. bxc3 {[%emt 0:00:01]} Rc8 {[%emt 0:00:30]} 26. Kc2 {[%emt 0:02:38]} Rg8 {[%emt 0:02:30]} 27. g3 {[%emt 0:01:14]} Rg5 {[%emt 0:06:30]} 28. Rf1 {[%emt 0:00:57]} h5 {[%emt 0:07:30]} 29. Nd4 {[%emt 0:03:06]} Bxd4 {[%emt 0:03:30]} 30. cxd4 {[%emt 0:00:00]} h4 {[%emt 0:00:30]} 31. Rf3 {[%emt 0:00:25]} hxg3 {[%emt 0:00:30]} 32. hxg3 {[%emt 0:04:29]} 1/2-1/2

[Event "4th Baskent University Open 2019"]
[Site "Ankara"]
[Date "2019.06.22"]
[Round "9"]
[White "Kecili, Mustafa Firat"]
[Black "Can, Ilhan"]
[Result "0-1"]
[ECO "B33"]
[WhiteElo "1673"]
[BlackElo "1726"]
[Annotator "NA"]
[PlyCount "104"]
[EventDate "2019.06.18"]
[EventType "swiss"]
[EventCountry "TUR"]
[SourceTitle "playchess.com"]
[Source "ChessBase"]
[SourceQuality "1"]
[TimeControl "5400+30"]

1. e4 {[%emt 0:00:30]} c5 {[%emt 0:06:30]} 2. Nf3 {[%emt 0:00:30]} e6 {[%emt 0:00:00]} 3. d4 {[%emt 0:00:30]} cxd4 {[%emt 0:00:00]} 4. Nxd4 {[%emt 0:00:30]} Qb6 {[%emt 0:00:30]} 5. Nb3 {[%emt 0:00:00]} Nc6 {[%emt 0:00:30]} 6. Be3 {[%emt 0:03:00]} Qc7 {[%emt 0:00:00]} 7. Be2 {[%emt 0:03:30]} Nf6 {[%emt 0:01:00]} 8. Nc3 {[%emt 0:02:30]} Bb4 {[%emt 0:00:30]} 9. O-O {[%emt 0:05:30]} Bxc3 {[%emt 0:03:30]} 10. bxc3 {[%emt 0:00:30]} Nxe4 {[%emt 0:00:30]} 11. Bd3 {[%emt 0:03:30]} Nf6 {[%emt 0:03:30]} 12. Nd4 {[%emt 0:10:30]} a6 {[%emt 0:03:30]} 13. Re1 {[%emt 0:06:30]} Ne5 {[%emt 0:03:30]} 14. Bf4 {[%emt 0:03:30]} d6 {[%emt 0:01:30]} 15. Bxe5 {[%emt 0:07:30]} dxe5 {[%emt 0:02:30]} 16. Nf3 {[%emt 0:00:30]} e4 {[%emt 0:02:30]} 17. Bxe4 {[%emt 0:01:30]} Nxe4 {[%emt 0:00:00]} 18. Rxe4 {[%emt 0:00:00]} O-O {[%emt 0:01:00]} 19. Re3 {[%emt 0:05:00]} b6 {[%emt 0:00:30]} 20. Qe2 {[%emt 0:05:30]} Bb7 {[%emt 0:05:30]} 21. Nd4 {[%emt 0:02:30]} Rac8 {[%emt 0:02:30]} 22. Rh3 {[%emt 0:02:30]} Qf4 {[%emt 0:02:30]} 23. Re1 {[%emt 0:03:30]} Rc5 {[%emt 0:01:30]} 24. Nb3 {[%emt 0:07:30]} Rg5 {[%emt 0:01:30]} 25. Rg3 {[%emt 0:02:30]} Rxg3 {[%emt 0:00:30]} 26. hxg3 {[%emt 0:00:30]} Qc7 {[%emt 0:00:30]} 27. c4 {[%emt 0:01:30]} Qc6 {[%emt 0:02:30]} 28. f3 {[%emt 0:00:30]} Rc8 {[%emt 0:00:30]} 29. Rd1 {[%emt 0:02:30]} h6 {[%emt 0:02:30]} 30. c5 {[%emt 0:00:50]} b5 {[%emt 0:01:30]} 31. Rd6 {[%emt 0:00:32]} Qc7 {[%emt 0:00:30]} 32. Qd2 {[%emt 0:01:26]} Bd5 {[%emt 0:00:30]} 33. Rxa6 {[%emt 0:02:43]} Qxg3 {[%emt 0:01:30]} 34. Qf2 {[%emt 0:00:51]} Qf4 {[%emt 0:02:30]} 35. Ra7 {[%emt 0:05:04]} Rd8 {[%emt 0:01:30]} 36. Qd4 {[%emt 0:01:41]} Qg5 {[%emt 0:00:30]} 37. Qd2 {[%emt 0:02:06]} Qe5 {[%emt 0:03:30]} 38. c6 {[%emt 0:00:37]} Rc8 {[%emt 0:00:30]} 39. Nd4 {[%emt 0:02:33]} Bxc6 {[%emt 0:03:30]} 40. Nxc6 {[%emt 0:00:30]} Qc5+ {[%emt 0:00:30]} 41. Kh1 {[%emt 0:02:53]} Qxc6 {[%emt 0:00:30]} 42. Qf4 {[%emt 0:00:34]} Rf8 {[%emt 0:00:30]} 43. Rc7 {[%emt 0:00:35]} Qd5 {[%emt 0:00:30]} 44. a3 {[%emt 0:01:09]} g5 {[%emt 0:00:30]} 45. Qb4 {[%emt 0:01:15]} Rd8 {[%emt 0:00:30]} 46. Qe7 {[%emt 0:00:47]} Rf8 {[%emt 0:02:30]} 47. Rc5 {[%emt 0:00:43]} Qd1+ {[%emt 0:00:30]} 48. Kh2 {[%emt 0:00:08]} Qd4 {[%emt 0:04:30]} 49. Rxb5 {[%emt 0:01:11]} Qf4+ {[%emt 0:00:30]} 50. Kh1 {[%emt 0:00:42]} Rc8 {[%emt 0:00:30]} 51. Rc5 {[%emt 0:00:54]} Qh4+ {[%emt 0:00:30]} 52. Kg1 {[%emt 0:00:11]} Qd4+ {[%emt 0:00:00]} 0-1

[Event "4th Baskent University Open 2019"]
[Site "Ankara"]
[Date "2019.06.22"]
[Round "9"]
[White "Cevizci, Yusuf Baran"]
[Black "Ceylan, Sezer"]
[Result "1-0"]
[ECO "C47"]
[WhiteElo "1670"]
[BlackElo "1617"]
[Annotator "NA"]
[PlyCount "77"]
[EventDate "2019.06.18"]
[EventType "swiss"]
[EventCountry "TUR"]
[SourceTitle "playchess.com"]
[Source "ChessBase"]
[SourceQuality "1"]
[TimeControl "5400+30"]

1. e4 {[%emt 0:00:30]} e5 {[%emt 0:09:30]} 2. Nf3 {[%emt 0:00:30]} Nc6 {[%emt 0:00:30]} 3. Nc3 {[%emt 0:00:30]} Nf6 {[%emt 0:00:30]} 4. Be2 {[%emt 0:01:30]} Bb4 {[%emt 0:01:30]} 5. Nd5 {[%emt 0:00:30]} O-O {[%emt 0:01:30]} 6. c3 {[%emt 0:00:30]} Ba5 {[%emt 0:00:30]} 7. d3 {[%emt 0:00:30]} Nxd5 {[%emt 0:00:30]} 8. exd5 {[%emt 0:00:30]} Nd4 {[%emt 0:00:30]} 9. Nxd4 {[%emt 0:03:30]} exd4 {[%emt 0:00:30]} 10. b4 {[%emt 0:00:00]} Bb6 {[%emt 0:00:30]} 11. c4 {[%emt 0:00:00]} c5 {[%emt 0:01:30]} 12. bxc5 {[%emt 0:00:30]} Bxc5 {[%emt 0:00:30]} 13. O-O {[%emt 0:00:30]} d6 {[%emt 0:00:00]} 14. Rb1 {[%emt 0:00:30]} a6 {[%emt 0:00:00]} 15. a4 {[%emt 0:01:30]} Rb8 {[%emt 0:00:30]} 16. Bd2 {[%emt 0:01:30]} Bd7 {[%emt 0:00:30]} 17. a5 {[%emt 0:00:30]} b5 {[%emt 0:01:30]} 18. axb6 {[%emt 0:00:30]} Rxb6 {[%emt 0:01:30]} 19. Ra1 {[%emt 0:00:30]} Qa8 {[%emt 0:01:30]} 20. Bg4 {[%emt 0:00:30]} Bxg4 {[%emt 0:01:30]} 21. Qxg4 {[%emt 0:00:00]} Kh8 {[%emt 0:00:30]} 22. Rfe1 {[%emt 0:00:00]} Rb2 {[%emt 0:01:30]} 23. Bf4 {[%emt 0:00:30]} Qb7 {[%emt 0:01:30]} 24. Qg3 {[%emt 0:00:30]} Qb6 {[%emt 0:01:30]} 25. h4 {[%emt 0:00:30]} a5 {[%emt 0:01:30]} 26. h5 {[%emt 0:00:30]} h6 {[%emt 0:00:30]} 27. Qh4 {[%emt 0:00:30]} Rb3 {[%emt 0:13:30]} 28. Bxh6 {[%emt 0:05:30]} gxh6 {[%emt 0:03:30]} 29. Qf6+ {[%emt 0:00:00]} Kh7 {[%emt 0:00:30]} 30. Re4 {[%emt 0:00:00]} Qd8 {[%emt 0:04:30]} 31. Re7 {[%emt 0:00:30]} Qc8 {[%emt 0:04:30]} 32. Rae1 {[%emt 0:00:00]} Rb7 {[%emt 0:01:30]} 33. Qg6+ {[%emt 0:01:00]} Kh8 {[%emt 0:00:00]} 34. Qxh6+ {[%emt 0:00:00]} Kg8 {[%emt 0:00:00]} 35. R1e6 {[%emt 0:01:00]} Qxe6 {[%emt 0:00:30]} 36. dxe6 {[%emt 0:00:00]} Rxe7 {[%emt 0:01:30]} 37. Qg5+ {[%emt 0:00:00]} Kh8 {[%emt 0:00:30]} 38. Qxe7 {[%emt 0:00:30]} Kg7 {[%emt 0:00:00]} 39. h6+ {[%emt 0:00:00]} 1-0